Cogmind - Beta 16 @@@ ROGUE MODE // 2025.11.21 @ 20:07:25 Player: Sharkenning Result: Destroyed by S-27 Virus with Autogun Performance ------------- Evolutions (3) 1500 Regions Visited (8) 1600 Robots Destroyed (155) 775 Value Destroyed (4196) 4196 Prototype IDs (31) 620 Alien Tech Used (0) 0 Bonus (1600) 1600 TOTAL SCORE: 10291 Bonus ------- High Alert Combat Kills 814 Follower Combat Kills 486 Aligned with FarCom 300 Cogmind --------- Core Integrity 0/700 Matter 300/300 Energy 100/100 System Corruption 11% Temperature Cool (0) Movement Core (400) Ox7 Location -7/Lower Caves Parts ------- > --- POWER (1) -------- (None) > --- PROPULSION (3) --- (None) > --- UTILITY (6) ------ Large Storage Unit Advanced Visual Processing Unit Salvage Targeting Computer Advanced Targeting Computer > --- WEAPON (3) ------- Spear > --- INVENTORY (15) --- Improved Deuterium Engine Coolant Injector High-capacity Storage Unit Microactuators Hacking Suite High-powered Tractor Beam Improved EM Pulse Cannon Deploy-a-Sentry Deploy-a-Sentry Deploy-a-Sentry Peak State ------------ > --- POWER ------------ Cooled Deuterium Engine > --- PROPULSION ------- Advanced Treads Advanced Treads Medium Treads > --- UTILITY ---------- Large Storage Unit Improved Signal Interpreter Advanced Targeting Computer Hardened Medium Armor Plating Hardened Medium Armor Plating Hacking Suite > --- WEAPON ----------- Heavy EM Shotgun Advanced Assault Cannon Advanced Assault Cannon > --- INVENTORY -------- High-capacity Storage Unit Large Matter Pod Salvage Targeting Computer Microactuators Hardened Heavy Armor Plating High-powered Tractor Beam Drone Bay Shotgun Gauss Rifle Proton Missile Launcher Katana Deploy-a-Sentry Deploy-a-Sentry Deploy-a-Sentry [Rating: 48] Favorites ----------- Power Ion Engine Engine Ion Engine Power Core Nuclear Core Propulsion Light Treads Treads Light Treads Leg Aluminum Leg Wheel Wheel Hover Unit Cooled Aerolev Unit Flight Unit Xenon Bombardment Thruster Utility Advanced Targeting Computer Device Seismic Detector Storage Large Storage Unit Processor Advanced Targeting Computer Hackware Hacking Suite Protection Hardened Medium Armor Plating Weapon Advanced Assault Cannon Energy Gun Heavy EM Shotgun Energy Cannon Beam Cannon Ballistic Gun Shotgun Ballistic Cannon Advanced Assault Cannon Launcher Rocket Launcher Slashing Weapon Katana Piercing Weapon Spear Build | -11 -10 -10 -10 -9 -8 -8 -7 -7 ------- Run | Yrd Mat Min Exi Min Mat Sto Fac Low Slots Evolved 6 | . . . . . 4 . 2 . Power . | . . . . . . . . . Propulsion 1 | . . . . . 1 . . . Utility 4 | . . . . . 2 . 2 . Weapon 1 | . . . . . 1 . . . Parts Attached 75 | 7 7 4 . 2 17 6 24 8 Power 7 | 1 1 . . . 1 . 3 1 Engine 5 | 1 1 . . . . . 2 1 Core 2 | . . . . . 1 . 1 . Reactor . | . . . . . . . . . Propulsion 22 | 2 2 2 . 1 5 2 6 2 Treads 12 | . 2 . . . 3 1 6 . Leg 2 | 2 . . . . . . . . Wheel 6 | . . 2 . 1 2 . . 1 Hover 1 | . . . . . . 1 . . Flight 1 | . . . . . . . . 1 Utility 24 | 2 2 1 . . 6 2 8 3 Device 6 | 1 1 . . . 1 . 2 1 Storage 4 | 1 1 . . . 1 1 . . Processor 5 | . . . . . 2 1 . 2 Hackware 1 | . . . . . . . 1 . Protection 8 | . . 1 . . 2 . 5 . Artifact . | . . . . . . . . . Weapon 22 | 2 2 1 . 1 5 2 7 2 Energy Gun 5 | 1 1 . . . 2 1 . . Energy Cannon 2 | . 1 . . . . . 1 . Ballistic Gun 4 | 1 . . . . 1 . 1 1 Ballistic Cannon 5 | . . . . . 1 1 3 . Launcher 4 | . . 1 . 1 . . 2 . Special Weapon . | . . . . . . . . . Impact Weapon . | . . . . . . . . . Slashing Weapon 1 | . . . . . 1 . . . Piercing Weapon 1 | . . . . . . . . 1 Special Melee Weapon . | . . . . . . . . . Unidentified Prototypes 4 | . . . . . 2 1 1 . Parts Lost 30 | . . 1 . . 1 . 13 15 Power 5 | . . . . . . . 3 2 Propulsion 8 | . . 1 . . . . 2 5 Utility 8 | . . . . . 1 . 3 4 Weapon 9 | . . . . . . . 5 4 Highest Loss Streak 8 | . . 1 . . 1 . 6 8 To Critical Strikes . | . . . . . . . . . Average Backups 8 | 3 7 8 7 7 6 10 10 7 Power . | . . . . . . . . 1 Propulsion . | 1 2 . . . . . . . Utility 5 | . 2 5 4 4 3 6 6 5 Weapon 2 | . 1 2 3 3 3 4 3 . Tool/Special . | . . . . . . . . . Unused Backups 10 | . . . . . 2 1 3 4 Power 1 | . . . . . . . . 1 Propulsion 2 | . . . . . . . 2 . Utility 6 | . . . . . 1 1 1 3 Weapon 1 | . . . . . 1 . . . Tool/Special . | . . . . . . . . . Average Slot Usage (%) 90 | . 99 99 100 100 98 95 93 63 Engine 6 | . 14 14 14 14 . . 3 6 Core 2 | . . . . . 8 8 2 . Treads 14 | . 8 26 . . 2 25 21 1 Leg 1 | . 19 . . . . . . . Wheel 3 | . . 1 28 28 23 . . . Device 3 | . 14 5 . . 2 . 1 3 Storage 9 | . 14 14 14 14 9 9 7 7 Processor 12 | . . . . . 15 18 15 17 Hackware 1 | . . . . . . . 4 . Protection 7 | . . 8 14 14 9 7 12 . Energy Gun 4 | . 13 3 . . 8 9 3 . Energy Cannon 4 | . 9 14 14 14 1 . 2 4 Ballistic Gun 3 | . 4 1 14 1 5 3 4 2 Ballistic Cannon 5 | . . . . . 7 8 6 5 Launcher 2 | . . 10 . 12 . 2 . . Slashing Weapon 1 | . . . . . 3 2 3 . Piercing Weapon 1 | . . . . . . . . 6 Peak Build Rating 48 | 9 9 8 9 11 33 36 48 44 Average Rating 27 | 5 8 7 8 10 27 30 42 30 On Entrance 16 | . 9 8 8 9 11 30 31 44 Avg Prop Armor Cover (%) 6 | . . 10 . . . . . 3 Naked Turns . | . . . . . . . . . Heaviest Build 71 | 14 21 24 22 25 48 51 68 71 Greatest Support 72 | 20 40 40 20 22 60 60 72 62 Greatest Overweight (x) 16 | . 1 2 1 1 1 1 2 16 Average Overweight (x) . | . . . 1 1 . . . 8 Largest Inventory Capacity 20 | 8 10 10 10 10 15 20 20 15 Average Capacity 13 | 7 9 10 10 10 10 15 15 15 Most Carried 15 | 5 10 10 10 10 10 15 15 15 Average Carried 11 | 3 7 9 9 9 9 13 14 10 Final Capacity 15 | 8 10 10 10 10 15 15 15 15 Final Carried 15 | 4 10 10 10 10 10 14 15 10 Class Distribution -------------------- 68% | Mutant 20% | Skirmisher 8% | Tank Dominant Class ---------------- Mutant | -10/Materials Mutant | -10/Mines Mutant | -10/Exiles Mutant | -9/Mines Skirmisher | -8/Materials Skirmisher | -8/Storage Mutant | -7/Factory Mutant | -7/Lower Caves Resources | -11 -10 -10 -10 -9 -8 -8 -7 -7 ----------- Run | Yrd Mat Min Exi Min Mat Sto Fac Low Matter Collected 3543 | 290 106 119 . 50 371 699 1481 427 Remotely 659 | . . . . . . . 560 99 Salvage Created 4660 | 184 470 266 . 25 472 787 2141 315 Parts 285 | 7 25 36 . 3 30 63 114 7 Haulers Intercepted 8 | . 2 . . . 1 2 3 . Recyclers Shooed 2 | . . . . . 1 . 1 . Parts Field Recycled . | . . . . . . . . . Retrieved Matter . | . . . . . . . . . Parts Self-Destructed 6 | . . . . . . . . 6 Prevented 1 | . . . . . . . . 1 Parts Restored . | . . . . . . . . . Kills | -11 -10 -10 -10 -9 -8 -8 -7 -7 ------- Run | Yrd Mat Min Exi Min Mat Sto Fac Low Combat Hostiles Destroyed 101 | . 10 14 . 3 6 21 43 4 Melee 6 | . . . . . 2 . 1 3 Guns 23 | . 7 1 . . 1 5 8 1 Cannons 34 | . 3 3 . . 3 6 19 . AOE 38 | . . 10 . 3 . 10 15 . Classes Destroyed 16 | 2 6 1 . . 1 2 3 1 Worker 10 | . 1 . . . 2 1 6 . Builder 10 | . . 2 . . . 1 7 . Tunneler 6 | 4 . 2 . . . . . . Hauler 8 | . 2 . . . 1 2 3 . Recycler 6 | 1 . 1 . . . 1 3 . Operator 4 | . 1 . . . 1 . 2 . Watcher 10 | . 3 . . . 2 1 4 . Swarmer 37 | . 6 14 . 3 . 10 3 1 Grunt 31 | . 4 . . . 4 2 20 1 Brawler 5 | . . . . . . . 5 . Duelist 2 | . . . . . . 1 1 . Protector 3 | . . . . . . 1 2 . Sentry 14 | . . . . . 2 7 4 1 Hunter 1 | . . . . . . . 1 . Programmer 7 | . . . . . . . 7 . Behemoth 1 | . . . . . . . . 1 Decomposer 1 | . . . . . . . . 1 Best Kill Streak 12 | 3 6 7 . 3 3 8 12 3 Combat Bots Only 8 | . 5 5 . 3 2 6 8 3 Max Kills in Single Turn 5 | 1 2 3 . 2 1 3 5 1 Gunslinging 1 | . 1 . . . . . . . Exploded 3 | . . 3 . 2 . 3 3 . Melee 1 | . . . . . 1 . 1 1 Uniques/NPCs Destroyed . | . . . . . . . . . Combat | -11 -10 -10 -10 -9 -8 -8 -7 -7 -------- Run | Yrd Mat Min Exi Min Mat Sto Fac Low Hostile Shots Fired 602 | . 46 41 . 4 20 44 300 147 Missed 159 | . 13 12 . 2 3 11 79 39 Hits 443 | . 33 29 . 2 17 33 221 108 Melee 6 | . . . . . . . 6 . Projectile 437 | . 33 29 . 2 17 33 215 108 Critical Strikes 11 | . 1 . . . . 1 4 5 Damage Taken 6216 | . 318 264 . 13 258 382 2937 2044 Core 856 | . 60 34 . . 34 27 207 494 Absorbed by Shields . | . . . . . . . . . Regen/Repaired (Parts) 167 | . . . . . . 167 . . Core Remaining (%) 83 | 100 . . . 62 . 88 . . Volleys Fired 278 | 20 48 21 . 2 21 35 115 16 Largest 3 | 2 2 2 . 2 3 3 3 2 Hottest 149 | 70 110 100 . 90 113 140 149 73 Shots Fired 550 | 40 91 34 . 4 42 71 243 25 Gun 258 | 40 59 16 . . 21 36 78 8 Cannon 266 | . 32 14 . 2 21 26 161 10 Launcher 26 | . . 4 . 2 . 9 4 7 Special . | . . . . . . . . . Kinetic 308 | 20 16 5 . . 25 39 185 18 Thermal 104 | 20 66 14 . 2 2 . . . Explosive 18 | . . 4 . 2 . 9 3 . Electromagnetic 120 | . 9 11 . . 15 23 55 7 Robot Hit Streak 23 | 6 11 4 . . 13 15 23 9 Robot Miss Streak 4 | 2 3 2 . . 1 3 4 1 Penetration Max 1 | . . . . . . . 1 . Secondary Targets 1 | . 1 . . . . . . . Max Gunslinging Chain 1 | . 1 . . . . . . . Shots Hit Robots 388 | 25 54 16 . . 34 48 171 40 Core Hits 251 | 9 28 19 . 3 18 40 125 9 Critical Kills 1 | . 1 . . . . . . . Critical Parts Destroyed 1 | . . . . . . . . 1 Critical Strikes 25 | 3 2 . . . 1 2 11 6 Burn 4 | 3 1 . . . . . . . Destroy 2 | . 1 . . . . . . 1 Blast 16 | . . . . . 1 2 11 2 Impale 3 | . . . . . . . . 3 Melee Attacks 98 | . . . . . 13 6 50 29 Impact . | . . . . . . . . . Slashing 69 | . . . . . 13 6 50 . Piercing 29 | . . . . . . . . 29 Sneak Attacks 10 | . . . . . 2 2 5 1 Combat Hostiles . | . . . . . . . . . Follow-up Attacks . | . . . . . . . . . Damage Inflicted 13321 | 280 752 690 . 100 946 1903 7577 1073 Guns 3183 | 280 452 77 . . 351 614 1255 154 Cannons 4141 | . 300 139 . . 258 435 2816 193 Explosions 4370 | . . 460 . 100 . 698 3010 102 Melee 1526 | . . . . . 315 130 457 624 Ramming 101 | . . 14 . . 22 26 39 . Kinetic 4507 | 116 80 10 . . 281 621 3052 347 Thermal 1700 | 164 572 211 . . 17 33 703 . Explosive 3379 | . . 388 . 100 . 665 2226 . Electromagnetic 2108 | . 100 67 . . 311 428 1100 102 Impact . | . . . . . . . . . Slashing 902 | . . . . . 315 130 457 . Piercing 624 | . . . . . . . . 624 Highest Corruption 11 | . . . . . . . 11 11 Average Corruption 9 | . . . . . . . 6 11 Corruption Purged . | . . . . . . . . . Corruption Blocked . | . . . . . . . . . Effects 106 | . . . . . . . 36 70 Message Errors 25 | . . . . . . . 7 18 Matter Fused 30 | . . . . . . . 12 18 Heat Flow Errors 12 | . . . . . . . 1 11 Energy Discharges 12 | . . . . . . . 4 8 Data Loss (minor) 15 | . . . . . . . 6 9 Data Loss (major) 4 | . . . . . . . 1 3 Misfires 3 | . . . . . . . 2 1 Alerts 2 | . . . . . . . 1 1 Misdirections 1 | . . . . . . . . 1 Weapon Failures 2 | . . . . . . . 2 . Overload Shots . | . . . . . . . . . Overflow Damage 479 | . . 37 . . 31 34 344 33 Projectiles 100 | . . . . . 1 . 97 2 Explosions 282 | . . 37 . . . 34 211 . Melee 97 | . . . . . 30 . 36 31 Knockbacks 17 | . . . . . 1 3 13 . Impact . | . . . . . . . . . Kinetic 16 | . . . . . 1 2 13 . Secondary 1 | . . . . . . 1 . . Self-Inflicted Damage 583 | . . 38 . . . 26 476 43 Shots 18 | . . 1 . . . 2 11 4 Rammed 14 | . . 3 . . 3 2 6 . Targets Rammed 17 | . . 4 . . 3 3 7 . Kicked . | . . . . . . . . . Crushed 3 | . . 1 . . . 1 1 . Highest Temperature 366 | 160 366 234 . 78 135 261 333 320 Average Temperature 99 | 83 111 96 . 41 32 60 113 115 Received Heat Transfer 1446 | . 75 . . . 126 54 576 615 Effects 4 | . 2 . . . . . 2 . Shutdowns 1 | . 1 . . . . . . . Energy Bleed 2 | . 1 . . . . . 1 . Short Circuit 1 | . . . . . . . 1 . Siege Activations . | . . . . . . . . . Martial Activations . | . . . . . . . . . Shielding Activations . | . . . . . . . . . Robots Disrupted 1 | . . . . . 1 . . . Combat Hostiles 1 | . . . . . 1 . . . Robots Corrupted . | . . . . . . . . . Combat Hostiles . | . . . . . . . . . Parts Fried 5 | . . . . . 1 1 3 . Impact Corruptions . | . . . . . . . . . Robots Melted . | . . . . . . . . . Combat Hostiles . | . . . . . . . . . Parts Melted 8 | 2 6 . . . . . . . Heat Transferred 3228 | 703 1517 396 . . 37 50 525 . Parts Sabotaged . | . . . . . . . . . Parts Stolen . | . . . . . . . . . Parts Stripped . | . . . . . . . . . Power Chain Reactions 8 | . . 1 . . . 1 6 . Alert | -11 -10 -10 -10 -9 -8 -8 -7 -7 ------- Run | Yrd Mat Min Exi Min Mat Sto Fac Low Maximum Alert Level 3 | . . . . . . 2 3 . Low Security (%) 53 | 100 100 100 . 100 100 51 . . Level 1 6 | . . . . . . 18 6 . Level 2 25 | . . . . . . 29 54 . Level 3 14 | . . . . . . . 39 . Level 4 . | . . . . . . . . . Level 5 . | . . . . . . . . . High Security . | . . . . . . . . . Max Security . | . . . . . . . . . Peak Influence 1048 | 15 147 174 . 98 92 624 1048 . Initial 280 | . . 47 . . . 28 280 . Average 321 | 1 26 67 . 26 12 231 711 . Influence Increases 4258 | 25 315 421 . 98 218 1296 1790 95 Destroy 0b10 Robot/C 2260 | . 200 280 . 60 120 660 860 80 Destroy 0b10 Robot/NC 295 | 25 35 25 . . 30 40 135 5 Destroy Leader 518 | . 50 50 . 10 26 178 194 10 Allied During Kill 224 | . . . . 11 . 194 19 . Successful Hack 73 | . 15 . . . 4 22 32 . Disable Machine 330 | . 15 15 . . . 30 270 . Destroy Structure 333 | . . 36 . 17 8 82 190 . Partial Spotted 30 | . . . . . . . 30 . Lose Combat Pursuer 195 | . . 15 . . 30 90 60 . Influence Decreases 4258 | 25 192 474 70 98 150 746 1371 1132 Entered New Map 909 | . . 76 70 . . 40 338 385 Time Decay 2656 | 25 192 388 . 98 150 506 693 604 Lost Part 283 | . . 10 . . . . 130 143 Lost Ally 260 | . . . . . . 200 60 . Purge Threat 150 | . . . . . . . 150 . Squads Dispatched 23 | . 2 . . . . 5 16 . Investigation 3 | . 1 . . . . 1 1 . Extermination 4 | . . . . . . . 4 . Reinforcement 6 | . 1 . . . . 2 3 . Assault 7 | . . . . . . 2 5 . Garrison 3 | . . . . . . . 3 . Intercept . | . . . . . . . . . Searches Triggered . | . . . . . . . . . Construction Impeded 2 | . . . . . . . 2 . Haulers Reinforced . | . . . . . . . . . Active Scanning Responses . | . . . . . . . . . Cargo Convoy Interrupts . | . . . . . . . . . Stealth | -11 -10 -10 -10 -9 -8 -8 -7 -7 --------- Run | Yrd Mat Min Exi Min Mat Sto Fac Low Distress Signals 7 | . 1 . . . . 2 4 . Communications Jammed . | . . . . . . . . . Distress Signals . | . . . . . . . . . Times Spotted 148 | . 15 15 . 3 13 35 60 7 Peak Tracking Total 11 | . 4 3 . 3 3 5 11 3 Tactical Retreats 8 | . . 1 . . 1 3 3 . Traps | -11 -10 -10 -10 -9 -8 -8 -7 -7 ------- Run | Yrd Mat Min Exi Min Mat Sto Fac Low Traps Triggered 5 | . . . . . . 5 . . Indirectly . | . . . . . . . . . Trap Hack Attempts . | . . . . . . . . . Triggered . | . . . . . . . . . Disarmed . | . . . . . . . . . Reprogrammed . | . . . . . . . . . Reused . | . . . . . . . . . Traps Extracted . | . . . . . . . . . Installed . | . . . . . . . . . Triggered . | . . . . . . . . . Most Traps Carried 3 | . . 3 3 . . . . . Machines | -11 -10 -10 -10 -9 -8 -8 -7 -7 ---------- Run | Yrd Mat Min Exi Min Mat Sto Fac Low Machines Disabled 22 | . 1 1 . . . 2 18 . Max in Single Turn 3 | . 1 1 . . . 1 3 . Garrison Access 3 | . . . . . 1 1 1 . Machines Repaired . | . . . . . . . . . Machines Dismantled . | . . . . . . . . . Machines Sabotaged . | . . . . . . . . . Overloaded Fab Kills . | . . . . . . . . . Hacking | -11 -10 -10 -10 -9 -8 -8 -7 -7 --------- Run | Yrd Mat Min Exi Min Mat Sto Fac Low Machines Accessed 43 | . 7 1 1 . 5 16 13 . Terminals 26 | . 5 1 . . 2 12 6 . Fabricators 2 | . . . . . . . 2 . Repair Stations 4 | . 1 . . . . 2 1 . Recycling Units 4 | . 1 . . . 2 1 . . Scanalyzers 3 | . . . . . . . 3 . Garrison Access 3 | . . . . . 1 1 1 . Total Hacks 107 | . 19 3 1 . 13 40 31 . Successful 56 | . 10 1 1 . 7 21 16 . Failed 51 | . 9 2 . . 6 19 15 . Catastrophic 9 | . 1 1 . . . 3 4 . Database Lockouts . | . . . . . . . . . Manual 40 | . 16 . 1 . 4 12 7 . Terminals 71 | . 16 3 . . 6 33 13 . Fabricators 6 | . . . . . . . 6 . Repair Stations 8 | . 2 . . . . 4 2 . Recycling Units 6 | . 1 . . . 4 1 . . Scanalyzers 8 | . . . . . . . 8 . Garrison Access 7 | . . . . . 3 2 2 . Terminal Hacks 22 | . 4 1 1 . 1 13 2 . Record 2 | . . 1 . . . 1 . . Part Schematic 1 | . 1 . . . . . . . Robot Schematic 1 | . . . . . . 1 . . Prototype ID Bank 2 | . 2 . . . . . . . Open Door 5 | . . . . . . 5 . . Alert Level 2 | . . . . . . 1 1 . Unreport Threat 1 | . . . . . . . 1 . Locate Traps 4 | . 1 . . . 1 2 . . Recall Reinforcements 1 | . . . . . . 1 . . Hauler Manifests 1 | . . . . . . 1 . . Registered Components 1 | . . . . . . 1 . . Proto ID Catalog 1 | . . . 1 . . . . . Fabricator Hacks 3 | . . . . . . . 3 . Load Schematic 2 | . . . . . . . 2 . Build 1 | . . . . . . . 1 . Repair Station Hacks 4 | . . . . . . 3 1 . Scan Component 3 | . . . . . . 2 1 . Repair 1 | . . . . . . 1 . . Recycling Unit Hacks 5 | . 1 . . . 3 1 . . Report Inventory 4 | . 1 . . . 2 1 . . Retrieve Components 1 | . . . . . 1 . . . Scanalyzer 7 | . . . . . . . 7 . Insert Component 2 | . . . . . . . 2 . Analyze 2 | . . . . . . . 2 . Retrieve Study 3 | . . . . . . . 3 . Garrison Access Hacks 3 | . . . . . 1 1 1 . Seal Access 3 | . . . . . 1 1 1 . Unauthorized Hacks 12 | . 5 . . . 2 3 2 . Terminals 11 | . 4 . . . 2 3 2 . Botnet 11 | . 4 . . . 2 3 2 . Fabricators . | . . . . . . . . . Repair Stations 1 | . 1 . . . . . . . Patch 1 | . 1 . . . . . . . Recycling Units . | . . . . . . . . . Scanalyzers . | . . . . . . . . . Garrison Access . | . . . . . . . . . Data Cores Recovered 3 | . 1 . . . 1 . 1 . Used 1 | . 1 . . . . . . . Hacking Detections 36 | . 6 1 . . 3 14 12 . Full Trace Events 2 | . . . . . . 1 1 . Feedback Events . | . . . . . . . . . Feedback Blocked . | . . . . . . . . . Robot Schematics Acquired 1 | . . . . . . 1 . . Robots Built 2 | . . . . . . . 2 . Authchips . | . . . . . . . . . Time 99 | . . . . . . . 99 . Total Robot Build Rating 4 | . . . . . . . 4 . Part Schematics Acquired 3 | . 1 . . . . . 2 . Parts Built . | . . . . . . . . . Authchips . | . . . . . . . . . Time . | . . . . . . . . . Total Part Build Rating . | . . . . . . . . . Part Studies Acquired 3 | . . . . . . . 3 . Parts Repaired 1 | . . . . . . 1 . . Time 38 | . . . . . . 38 . . Parts Recycled . | . . . . . . . . . Recycled Matter . | . . . . . . . . . Retrieved Matter . | . . . . . . . . . Retrieved Components 2 | . . . . . 2 . . . Parts Scanalyzed 2 | . . . . . . . 2 . Part Schematics Acquired 2 | . . . . . . . 2 . Parts Damaged 1 | . . . . . . . 1 . Bothacking | -11 -10 -10 -10 -9 -8 -8 -7 -7 ------------ Run | Yrd Mat Min Exi Min Mat Sto Fac Low Used RIF Installer . | . . . . . . . . . Robots Hacked . | . . . . . . . . . Non-combat . | . . . . . . . . . Combat . | . . . . . . . . . Robot Hacks Applied . | . . . . . . . . . Relay Couplers Released . | . . . . . . . . . Fabnet Peak Effective % . | . . . . . . . . . Robots Rewired . | . . . . . . . . . Allies Hacked . | . . . . . . . . . Hacks Repelled . | . . . . . . . . . Allies | -11 -10 -10 -10 -9 -8 -8 -7 -7 -------- Run | Yrd Mat Min Exi Min Mat Sto Fac Low Total Allies 17 | . . . . 3 . 12 2 . Largest Group 10 | . . . . 3 . 10 2 . Highest-Rated Group 173 | . . . . 40 . 173 30 . Highest-Rated Ally 31 | . . . . 16 . 31 16 . Total Orders . | . . . . . . . . . Ally Attacks 133 | . . . . 6 . 107 20 . Total Damage 1752 | . . . . 47 . 1333 372 . Kills 16 | . . . . . . 14 2 . Allies Corrupted . | . . . . . . . . . Allies Melted . | . . . . . . . . . Intel | -11 -10 -10 -10 -9 -8 -8 -7 -7 ------- Run | Yrd Mat Min Exi Min Mat Sto Fac Low Active Infowar (turns) 3488 | 40 913 401 . . 170 . . 1964 Optics 1964 | . . . . . . . . 1964 Terrain 276 | 40 236 . . . . . . . Traps 913 | . . . . . . . . 913 Seismic 1248 | . 677 401 . . 170 . . . Robot Analysis Total . | . . . . . . . . . Derelict Logs Recovered 3 | . . 2 . 1 . . . . Drone Launches . | . . . . . . . . . Drone Recoveries . | . . . . . . . . . Exploration | -11 -10 -10 -10 -9 -8 -8 -7 -7 ------------- Run | Yrd Mat Min Exi Min Mat Sto Fac Low Turns Passed 10141 | 165 913 1111 255 359 781 1745 2848 1964 Spaces Moved 4723 | 86 527 660 264 350 547 774 1230 285 Core 109 | 16 . . . . . . . 93 Treads 2826 | . 131 608 . . 40 774 1230 43 Legs 466 | 70 396 . . . . . . . Wheels 1175 | . . 52 264 350 507 . . 2 Hover . | . . . . . . . . . Flight 147 | . . . . . . . . 147 Fastest Speed 50 | 50 120 95 95 95 83 160 145 155 Average Speed 171 | 106 142 155 95 98 96 170 161 632 Slowest Speed 850 | 120 190 240 95 100 240 240 305 850 Overloaded Moves . | . . . . . . . . . Propulsion Burnouts . | . . . . . . . . . Robots Hopped . | . . . . . . . . . Potential Cave-ins 3 | . . . . . 3 . . . Cave-ins Triggered . | . . . . . . . . . Exploration Rate (%) 56 | 5 79 99 62 58 42 89 33 38 Regions Visited 8 Branch Regions 5 Pre-discovered Areas 2 | . . 2 . . . . . . Known Exits Taken 4 | . . . 1 . 1 1 1 . Unknown Exits Taken 4 | 1 1 1 . 1 . . . . Scrap Searched 5 | . . 1 . 2 . . . 2 Spaces Dug 46 | . . . . . 7 . 39 . Terrain Destroyed 376 | . . 36 . 19 11 102 204 4 Melee 33 | . . . . . 1 . 32 . Projectile 41 | . . . . . 10 8 19 4 AOE 302 | . . 36 . 19 . 94 153 . Terrain Rammed . | . . . . . . . . . Walls Destroyed . | . . . . . . . . . Machines Disabled . | . . . . . . . . . Actions | -11 -10 -10 -10 -9 -8 -8 -7 -7 --------- Run | Yrd Mat Min Exi Min Mat Sto Fac Low Total 6087 | 123 599 709 269 359 741 1121 1795 371 Wait 684 | . 5 6 . 1 92 259 299 22 Move 4715 | 85 526 659 263 349 546 773 1229 285 Hop . | . . . . . . . . . Pick Up 78 | 11 7 5 3 1 9 13 25 4 Fast Attach 18 | . . 2 . . 8 7 1 . Attach 45 | 7 1 . . . 6 7 14 10 Detach 4 | . 1 . . . 1 . 1 1 Swap 81 | . 9 6 . 3 10 13 36 4 Drop 49 | . 2 6 3 3 15 5 15 . Fire 278 | 20 48 21 . 2 21 35 115 16 Melee 98 | . . . . . 13 6 50 29 Ram . | . . . . . . . . . Kick . | . . . . . . . . . Crush 17 | . . 4 . . 3 3 7 . Escape Stasis . | . . . . . . . . . Rewire 20 | . . . . . 17 . 3 . Trap . | . . . . . . . . . Miscellaneous . | . . . . . . . . . Route ------- -11/Scrapyard -10/Materials (discovered 3 exits: [*Mat x2] / *Min) -10/Mines (discovered 4 exits: [*Mat x2] / *Exi / [*Sub]) -10/Exiles (discovered 2 exits: *Min x2) -9/Mines -8/Materials (discovered 2 exits: *Fac / *Sto) -8/Storage -7/Factory (discovered 2 exits: *Fac / *Low) -7/Lower Caves (discovered 1 exit: [*Zio]) History --------- Turn | Location | Event 4 | -11/Scrapyard | Discovered new exit (range 15) 166 | -11/Scrapyard | Entered Materials 317 | -10/Materials | Build established: Mutant 497 | -10/Materials | Discovered new exit (range 15) 641 | -10/Materials | Discovered new exit (range 15) 959 | -10/Materials | Discovered new exit (range 15) 1079 | -10/Materials | Entered Mines 1191 | -10/Mines | Learned location of Storage (-8) 1372 | -10/Mines | Deemed a non-threat by the Exiles lab entrance 1501 | -10/Mines | Discovered new exit (range 9) 1583 | -10/Mines | Found a hidden stash of uninstalled traps 1798 | -10/Mines | Discovered new exit (range 6) 2030 | -10/Mines | Discovered new exit (range 5) 2185 | -10/Mines | Discovered new exit (range 5) 2190 | -10/Mines | Entered Exiles 2191 | -10/Exiles | Identified exit to Mines 2223 | -10/Exiles | Met 8R-AWN 2241 | -10/Exiles | Met EX-HEX 2281 | -10/Exiles | Met EX-BIN 2301 | -10/Exiles | Aligned with FarCom system 2302 | -10/Exiles | Given EX-Vault access code 2324 | -10/Exiles | Opened EX-Vault 2339 | -10/Exiles | Found Deploy-a-Sentry 2341 | -10/Exiles | Found Deploy-a-Sentry 2343 | -10/Exiles | Found Deploy-a-Sentry 2362 | -10/Exiles | Warned to stay clear of 0b10 Research branches 2393 | -10/Exiles | Met EX-DEC 2445 | -10/Exiles | Left Exiles lab with Deploy-a-Sentry 2445 | -10/Exiles | Entered Mines 2454 | -9/Mines | Assisted by bots powering up and referring to "LRC-V3" 2503 | -9/Mines | Received a Rocket Launcher from a helpful Derelict 2589 | -9/Mines | Learned Materials emergency access door positions 2607 | -9/Mines | Discovered new exit (range 9) 2725 | -9/Mines | Assembled infested the area 2730 | -9/Mines | Assisted by a Guerilla fighting off Assembled 2773 | -9/Mines | Lost 3 allies 2804 | -9/Mines | Entered Materials 2804 | -8/Materials | Evolved 4 slots: Propulsion x1, Utility x2, Weapon x1 3283 | -8/Materials | Discovered new exit (range 13) 3329 | -8/Materials | Identified exit to Factory 3392 | -8/Materials | Build established: Skirmisher 3438 | -8/Materials | Discovered new exit (range 8) 3445 | -8/Materials | Identified exit to Storage 3585 | -8/Materials | Entered Storage 4302 | -8/Storage | Met a pair of Derelict thieves 4674 | -8/Storage | Assisted by bots powering up and referring to "LRC-V3" 4683 | -8/Storage | Discovered exit to Factory (range 8) 4856 | -8/Storage | Lost 3 allies 4931 | -8/Storage | Lost 4 allies 4969 | -8/Storage | Repaired Hrd. Medium Armor Plating 5330 | -8/Storage | Entered Factory 5330 | -7/Factory | Accompanied by 1 ally 5330 | -7/Factory | Evolved 2 slots: Utility x2 5730 | -7/Factory | First assault squad dispatched 5893 | -7/Factory | Fabricated Y-45 Defender (x2) 5942 | -7/Factory | Destroyed 8 combat bots 6024 | -7/Factory | Build established: Tank 6485 | -7/Factory | Build established: Mutant 7148 | -7/Factory | Garrison activated, responded to threat 7346 | -7/Factory | Lost 6 parts (1p1n2u2w) 7500 | -7/Factory | Discovered new exit (range 10) 7508 | -7/Factory | Identified exit to Factory 7681 | -7/Factory | System corruption reached 10% 7711 | -7/Factory | Lost 3 parts (1n1u1w) 8158 | -7/Factory | Discovered new exit (range 6) 8170 | -7/Factory | Identified exit to Lower Caves 8178 | -7/Factory | Entered Lower Caves 8239 | -7/Lower Caves | Spotted B-75 Beast 8349 | -7/Lower Caves | Core integrity fell below 50% 8379 | -7/Lower Caves | Lost 8 parts (1p3n2u2w) 8380 | -7/Lower Caves | Destroyed B-75 Beast 8721 | -7/Lower Caves | A Derelict revealed a hidden shortcut to a safe place 9552 | -7/Lower Caves | Attracted the attention of an 0b10 checkpoint 9602 | -7/Lower Caves | Lost 3 parts (2n1w) 10135 | -7/Lower Caves | Core integrity fell below 20% 10142 | -7/Lower Caves | Destroyed by S-27 Virus with Autogun Last Messages --------------- lost. System corrupted: Component data lost. System corrupted: Substantial component data lost. System corrupted: Energy discharge (-113). System corrupted: Heat flow error (+233). Sneak attack on SL-5FT(k). SL-5FT(k) destroyed. System corrupted: Matter fused (-9). Acquired 9 matter. System corrupted: Matter fused (-7). System corrupted: Heat flow error (+187). System corrupted: Energy discharge (-75). System corrupted: Matter fused (-8). Acquired 15 matter. System corrupted: IFF burst signal emitted. System corrupted: Matter fused (-8). Trap Scanner destroyed. Hvy. Battle Rifle destroyed. Rnf. Deuterium Engine destroyed. Map ----- +----------------------------------------------------+ | ?????????????????????????????????????????????????? | | ?????????????????????????????????????????????????? | | ?????????????????????????????????????????????????? | | ????????????????????????????????????#????????????? | | ???????????????????????????????????# ??????????? | | ??????????????????????????????????? ##???????? | | ??????????????????????????????????? ??????? | | ??????????????????????????????????? ????? | | ?????????????????????????????###??? ???? | | ???????????????????????####### ??? ???? | | ???????????????????????? ??? ????? | | ????????????????????????? ??? ????? | | ?????????????????????????# ??? ????? | | ????????????????????????## #?## ?????? | | ????????????????????????# #? ???????? | | ????????????????????????# #?# ??###?### | | ???????????????????????## ### ????# ## | | ???????????????????????# ## #?????# | | ???????????????#????????# #??###?# | | ???????????????# ???????? #?##%#??# | | ???????????????# ???###???# ### #???# | | ????????????????# ### #### #?# ##???# | | ???????????????## !% #?# ##???# | | ????????????#### ##s s ### ### #???## | | ????????????# s ##?### ###??# | | ???????????# !! # @ ##????## #??# | | ??????????# !???# ## ##??????## % ##### | | ??????????## ??????# ??# #????????## ###?# | | ?????????????????????#???# #?????????### ##???# # | | ?????????????????????????# ####???????## ##???# # | | ?????????????????????????# #??????## #???# # | | ?????????????????????????# #??????" # #???# # | | ?????????????????????????#### #??????" ##%##### # | | ????????????????????????????? #??????" ?# %% | | ????????????????????????????? #??????##?#%% | | ?????????????????????????????? #?????# ## ## | | ?????????????????????????????? #??# ### ## | | ?????????????????????????????? #??# ### #?# ## | | ??????????????????????????????? ??# #???# #?# #? | | ??????????????????????????????? ??# ???#?# ### #? | | ???????????????????????????????? ????### # ## ## | | ???????????????????????????????? ????# # | | ???????????????????????????????? # | | ????????????????????????????????????# | | ????????????????????????????????????# ## | | ???????????????????????????????????# #?# | | ??????????????????????????????????# #??# ### | | ?????????????????????????????????# ???# ??## | | ???????????????????????????????? ? ???# ???# | | ??????????????????????????????? ##? ????# ???# | +----------------------------------------------------+ Best States ------------- Heat Dissipation 34 Energy Generation 18 Energy Capacity 310 Matter Stores 300 Matter Capacity 300 Sight Range 20 Terrain Scan Range 16 Terrain Scan Density 10 Armor Coverage 750 Utility Shielding 33 Evasion (%) 55 Targeting Accuracy 8 Recoil Reduction 3 Salvage Targeting 1 Offensive Hacking 10 Item Schematics ----------------- Lrg. Storage Unit | -10/Materials | Hacked Hrd. Heavy Armor Plating | -7/Factory | Scanalyzed Drone Bay | -7/Factory | Scanalyzed Robot Schematics ------------------ Y-45 Defender | -8/Storage | Hacked Fabricated ------------ Y-45 Defender | x2 | -7/Factory Repaired ---------- Hrd. Medium Armor Plating | 30% | -8/Storage Studied --------- Med. Treads | -7/Factory | Hacked Adv. Assault Cannon | -7/Factory | Hacked Katana | -7/Factory | Hacked Alien Tech Used ----------------- None Achievements -------------- Brute Force My Command Is Your Wish Remodeling Challenges ------------ None Game ------ Seed ImprovedGodHoverbase Manual? 0 Play Time 02:11:09 Cumulative 18.9 hours Start 2025.11.21 @ 16:24:13 End 2025.11.21 @ 20:07:25 Sessions 1 Manual Loads 0 Difficulty Rogue Special Mode None Game No. 9 Rogue 9 Adventurer 0 Explorer 0 Win Type - Total 0 Types 0/0/0/0/0/0/0/0/0/0 Lore% 15 Gallery% 15 Achievement% 18 Wizard Run 0 Options --------- Layout 1 ASCII 0 Keyboard 0 Movement Mouse Keybinds 0 Fullscreen 1 Font 32/SmallcapsGlow Map View 50x35 Zoom Use 0% Tactical HUD 0 Map Filters NONE Filters NONE Steam 1 RUN: 3d574d42-5af2-45b2-8820-44c8f5fd1174